bitfinex-derivatives/quotes_ETHF0:USTF0_20250321
["timestamp","ask_amount","ask_price","bid_price","bid_amount"]
[1742565429883,6.21193,1953.8,1953.7,1.02408]
[1742565430474,5.1879,1953.8,1953.7,1.02408]
[1742565430679,3.761,1953.8,1953.7,1.02408]
[1742565431479,5.1717,1953.8,1953.7,1.02408]
[1742565431881,6.19573,1953.8,1953.7,1.02408]
[1742565432081,5.1717,1953.8,1953.7,1.02408]
[1742565433077,6.19573,1953.8,1953.7,1.02408]
[1742565434085,6.19573,1953.8,1953.7,2.41138]
[1742565434284,5.1717,1953.8,1953.7,2.41138]
[1742565434586,3.761,1953.8,1953.7,2.41138]
[1742565435483,5.0852,1953.8,1953.7,2.41138]
[1742565435880,26.64324376,1954.3,1953.7,2.41138]
[1742565435881,24.08378376,1954.3,1954.2,1.02382]
[1742565436087,25.49763317,1954.3,1954.2,1.02382]
[1742565436287,26.43180376,1954.3,1954.2,1.02382]
[1742565436580,25.40798376,1954.3,1954.2,1.02382]
[1742565436775,24.08378376,1954.3,1954.2,1.02382]
[1742565436976,24.08378376,1954.3,1954.2,3.04882]
[1742565437487,24.08378376,1954.3,1954.2,42.1585]
[1742565437677,1.02377,1954.3,1954.2,4.23162]
[1742565437981,1.02382,1954.2,1954.1,0.00767813]
[1742565438188,6.84972,1954.2,1954.1,0.00767813]
[1742565438483,6.84972,1954.2,1954.1,1.03154813]
[1742565438885,5.8259,1954.2,1954.1,1.03154813]
[1742565439185,5.8259,1954.2,1954.1,4.23934813]
[1742565439580,5.8259,1954.2,1954.1,5.59814813]
[1742565440586,5.8249,1954.2,1954.1,5.59814813]
[1742565441089,4.78282,1954.2,1954.1,46.39814813]
[1742565441286,6.78662,1954.2,1954.1,0.00767813]
[1742565441481,6.87627781,1954.2,1954.1,0.00767813]
[1742565441785,1.024,1953.9,1953.8,4.23179]
[1742565441984,4.783,1953.9,1953.8,4.23179]
[1742565442180,1.02405,1953.8,1953.7,1.02404]
[1742565443083,1.02405,1953.8,1953.7,2.43124]
[1742565443084,1.3296,1953.8,1953.7,2.43124]
[1742565443488,2.35363,1953.8,1953.7,2.43124]
[1742565443688,3.76667813,1953.9,1953.8,1.02403]
[1742565443889,3.76667813,1953.9,1953.8,5.59083]
[1742565443890,0.00767813,1953.9,1953.8,5.59083]
[1742565444093,6.17443,1954.4,1954.3,1.02377]
[1742565444590,6.17443,1954.4,1954.3,41.82377]
[1742565444783,6.17443,1954.4,1954.3,2.38277]
[1742565445187,1.3927,1954.4,1954.3,2.38277]
[1742565445391,1.3927,1954.4,1954.3,43.18277]
[1742565445591,5.46548,1954.5,1954.4,1.02372]
[1742565445592,0.6838,1954.5,1954.4,1.02372]
[1742565445793,1.71001,1954.6,1954.5,1.02366]
[1742565445986,5.46801,1954.6,1954.5,1.02366]
[1742565446186,5.46801,1954.6,1954.5,2.38266]
[1742565446583,4.4444,1954.6,1954.5,2.38266]
[1742565447099,5.46801,1954.6,1954.5,2.38266]
[1742565447392,7.00347,1954.6,1954.3,40.8]
[1742565447596,1.02377,1954.4,1954.3,1.02375]
[1742565447793,1.69518,1954.5,1954.4,1.02372]
[1742565447993,1.02377,1954.4,1954.3,1.02375]
[1742565448195,1.02377,1954.4,1954.3,4.23155]
[1742565451095,0.6715,1954.5,1954.3,4.23155]
[1742565451096,0.6715,1954.5,1954.4,1.02372]
[1742565451393,1.69516,1954.5,1954.4,2.33192]
[1742565451896,0.6864,1954.6,1954.4,1.3082]
[1742565452198,4.4378,1954.9,1954.8,1.02351]
[1742565452495,5.46125,1954.9,1954.8,1.02351]
[1742565452694,1.02351,1954.8,1954.7,0.00767813]
[1742565452891,1.70831,1954.8,1954.7,0.00767813]
[1742565453091,1.79793613,1954.8,1954.7,0.00767813]
[1742565453298,1.70831,1954.8,1954.7,0.00767813]
[1742565454396,1.79793679,1954.8,1954.7,0.00767813]
[1742565454598,5.00573679,1954.8,1954.7,0.00767813]
[1742565454797,1.02366,1954.5,1954.4,4.23147]
[1742565454987,3.756,1954.5,1954.4,4.23147]
[1742565455901,3.756,1954.5,1954.4,5.61597]
[1742565457702,4.77966,1954.5,1954.4,5.61597]
[1742565457903,3.756,1954.5,1954.4,5.61597]
[1742565458303,0.00767813,1954.6,1954.5,1.02366]
[1742565458496,0.00767813,1954.6,1954.5,2.32476]
[1742565459597,8.13e-06,1954.6,1954.5,2.32476]
[1742565460805,8.13e-06,1954.6,1954.5,4.82476]
[1742565461894,8.13e-06,1954.6,1954.5,2.32476]
[1742565464509,8.13e-06,1954.6,1954.5,4.82476]
[1742565466804,1.4165,1955.1,1955.0,1.0234]
[1742565467003,1.4165,1955.1,1955.0,4.2312]
[1742565467200,16.15934,1955.9,1955.0,6.9618]
[1742565467400,1.4165,1955.6,1955.5,1.02314]
[1742565468110,5.1695,1955.6,1955.5,2.34094]
[1742565468707,3.753,1955.6,1955.5,43.14094]
[1742565469421,5.1155,1955.6,1955.5,43.14094]
[1742565469712,3.753,1955.6,1955.5,43.14094]
[1742565469913,2.0755,1955.7,1955.6,1.02309]
[1742565470208,2.0755,1955.7,1955.6,5.54869]
[1742565470414,1.3625,1955.7,1955.6,5.54869]
[1742565470911,9.848,1956.4,1955.8,1.02298]
[1742565471211,3.01547,1956.2,1956.0,1.02288]
[1742565471416,1.3224,1956.1,1956.0,2.31958]
[1742565471808,2.34523,1956.1,1956.0,1.2967]
[1742565472008,1.02288,1956.0,1955.9,3.2078]
[1742565472208,1.02297,1955.9,1955.6,3.2078]
[1742565472411,5.7539,1956.0,1955.7,1.02302]
[1742565472412,1.3224,1955.8,1955.7,1.02302]
[1742565472607,2.34538,1955.8,1955.7,5.52752]
[1742565472912,1.3224,1955.8,1955.7,5.52754]
[1742565473912,5.44509,1956.2,1956.1,1.02283]
[1742565474216,5.44509,1956.2,1956.0,1.02284]
[1742565474407,2.32013,1956.1,1955.9,5.5202]
[1742565474617,1.2973,1956.1,1956.0,2.31238]
[1742565474809,1.02283,1956.1,1956.0,1.2895]
[1742565475009,1.02288,1956.0,1955.9,2.3124]
[1742565475404,1.02293,1955.9,1955.8,1.02294]
[1742565475609,4.4094,1955.9,1955.5,5.76555]
[1742565475810,0.7054,1955.8,1955.7,4.23084]
[1742565476018,1.72838,1955.8,1955.7,1.02304]
[1742565477004,1.72838,1955.8,1955.6,1.2895]
[1742565477005,1.02304,1955.7,1955.6,2.31256]
[1742565477209,1.72841,1955.8,1955.7,1.02304]
[1742565477409,1.02305,1955.7,1955.6,1.02305]
[1742565477604,1.02309,1955.6,1955.5,5.63742]
[1742565477814,1.02314,1955.5,1955.4,1.03083813]
[1742565478020,1.0231,1955.6,1955.5,1.02311]
[1742565478319,4.77409,1955.6,1955.5,4.23091]
[1742565478519,4.77409,1955.6,1955.5,3.2078]
[1742565478705,1.02314,1955.5,1955.4,0.00767813]
[1742565478908,1.71794,1955.5,1955.4,0.00767813]
[1742565479120,1.71794,1955.5,1955.4,1.03086813]
[1742565479317,3.751,1955.6,1955.5,1.02314]
[1742565479515,6.17318,1955.8,1955.7,1.02304]
[1742565479714,6.17318,1955.8,1955.5,3.2078]
[1742565479715,1.02304,1955.7,1955.6,1.4065]
[1742565479914,1.02304,1955.7,1955.6,1.02309]
[1742565480117,5.1502,1955.8,1955.5,4.6068]
[1742565480319,1.02308,1955.7,1955.6,1.02307]
[1742565480623,6.17322,1955.8,1955.7,1.02304]
[1742565480818,1.02304,1955.7,1955.6,2.42205]
[1742565481321,5.1502,1955.8,1955.7,1.02304]
[1742565481524,1.4002,1955.8,1955.7,5.62984]
[1742565481925,2.42318,1955.8,1955.7,5.62984]
[1742565482222,2.42318,1955.8,1955.4,3.26136813]
[1742565482223,1.02304,1955.7,1955.6,1.02309]
[1742565482420,1.02304,1955.7,1955.6,4.23089]
[1742565482620,1.02304,1955.7,1955.6,3.2078]
[1742565482821,1.02309,1955.6,1955.5,2.42212]
[1742565483221,1.02309,1955.6,1955.5,1.399]
[1742565483423,1.02314,1955.5,1955.4,4.23866813]
[1742565483727,1.4002,1955.8,1955.7,1.02304]
[1742565484421,1.02289,1956.0,1955.9,1.02287]
[1742565484625,3.75,1956.0,1955.9,4.23067]
[1742565484825,9.848,1956.8,1955.9,5.7078]
[1742565485017,1.0,1956.9,1956.8,1.02246]
[1742565485529,1.0,1956.9,1956.7,3.21547813]
[1742565485729,1.02246,1956.8,1956.7,3.21547813]
[1742565486019,1.02262,1956.5,1956.4,1.92809365]
[1742565486225,1.02283,1956.1,1956.0,4.23065]
[1742565486430,4.7718,1956.2,1956.1,1.02283]
[1742565486622,3.749,1956.2,1956.1,1.02283]
[1742565487022,4.77177,1956.2,1956.1,3.2078]
[1742565487215,1.02283,1956.1,1956.0,1.03054813]
[1742565487415,3.749,1956.2,1956.1,1.02283]
[1742565487416,4.7718,1956.2,1956.1,1.02283]
[1742565487621,1.02283,1956.1,1956.0,4.23832813]
[1742565487826,1.02283,1956.1,1956.0,5.64622813]
[1742565488221,1.03040813,1956.3,1956.2,1.02277]
[1742565488421,4.77940813,1956.3,1956.2,1.02277]
[1742565488824,3.75667813,1956.3,1956.0,3.21547813]
[1742565489030,1.02283,1956.1,1956.0,4.23835813]
[1742565489224,3.75667813,1956.3,1956.2,1.02277]
[1742565489528,1.02283,1956.1,1956.0,3.21547813]
[1742565489828,1.02283,1956.1,1956.0,4.23835813]
[1742565490131,1.02283,1956.1,1956.0,0.00767813]
[1742565490830,1.11239288,1956.1,1956.0,0.00767813]
[1742565491337,3.61239288,1956.1,1956.0,0.00767813]
[1742565491517,2.55729,1956.0,1955.6,43.20325]
[1742565491722,1.02304,1955.7,1955.6,43.20325]
[1742565492525,1.02318,1955.5,1955.4,1.02316]
[1742565492727,1.02319,1955.4,1955.3,1.3071]
[1742565492919,1.02319,1955.4,1955.3,43.13801813]
[1742565493434,1.02319,1955.4,1955.3,42.11477813]
[1742565493730,1.02319,1955.4,1955.3,43.13801813]
[1742565493931,2.36399,1955.4,1955.3,43.13801813]
[1742565494632,5.0888,1955.5,1955.4,1.02319]
[1742565494933,5.0888,1955.5,1955.4,5.53809]
[1742565495625,3.748,1955.5,1955.4,5.53809]
[1742565495927,1.4126,1955.8,1955.7,1.02304]
[1742565496132,1.02314,1955.6,1955.4,3.2078]
[1742565496429,1.02319,1955.4,1955.3,40.80767813]
[1742565496628,1.02319,1955.4,1955.3,43.24148813]
[1742565496932,1.02319,1955.4,1955.3,40.80767813]
[1742565497822,5.42025,1955.5,1955.4,1.02319]
[1742565498229,5.42025,1955.5,1955.4,1.4161]
[1742565498529,5.42025,1955.5,1955.4,2.43929]
[1742565499126,4.3971,1955.5,1955.4,2.43929]
[1742565499336,4.3971,1955.5,1955.4,3.12419]
[1742565499534,5.42024,1955.5,1955.4,3.12419]
[1742565500232,12.40549,1955.8,1955.4,3.12419]
[1742565500233,3.748,1955.8,1955.7,1.02304]
[1742565500429,1.02299,1955.9,1955.8,1.02296]
[1742565500736,4.77099,1955.9,1955.8,41.82296]
[1742565501130,3.748,1956.0,1955.9,1.02293]
[1742565501434,1.03042813,1956.3,1956.2,1.02277]
[1742565501626,4.77842813,1956.3,1956.2,1.02277]
[1742565501928,1.02288,1956.0,1955.9,2.38938]
[1742565502231,3.748,1956.0,1955.9,2.38938]
[1742565502529,3.748,1956.2,1955.9,1.3665]
[1742565502937,3.748,1956.2,1956.1,1.02283]
[1742565503432,2.5565,1956.6,1956.5,1.02259]
[1742565503433,1.02259,1956.6,1956.5,1.02259]
[1742565503626,1.02264,1956.5,1956.4,1.02264]
[1742565503934,3.26094,1956.6,1956.3,1.02271]
[1742565504135,1.02272,1956.3,1956.2,1.3665]
[1742565504731,1.02272,1956.3,1956.2,2.38927]
[1742565504930,1.03034813,1956.4,1956.3,1.02272]
[1742565505126,1.02272,1956.3,1956.2,1.3665]
[1742565505331,4.77739813,1956.4,1956.3,1.02272]
[1742565505528,1.02272,1956.3,1956.2,2.38923]
[1742565505728,3.75467813,1956.4,1956.3,1.02272]
[1742565505933,3.75467813,1956.4,1956.3,1.68652]
[1742565507830,9.848,1956.7,1956.3,1.68652]
[1742565508033,6.47391,1956.9,1956.8,1.02246]
[1742565508439,1e-05,1956.9,1956.8,4.23026]
[1742565508736,1e-05,1956.9,1956.8,1.73506]
[1742565508941,4.76842,1956.9,1956.8,0.7126]
[1742565509136,4.76842,1956.9,1956.8,1.02246]
[1742565509137,1e-05,1956.9,1956.8,1.02246]
[1742565509537,1.02242,1956.9,1956.8,40.8]
[1742565509838,2.37232,1956.9,1956.8,1.02246]
[1742565510045,1.34991,1956.9,1956.7,1.2951]
[1742565510340,1.02246,1956.8,1956.7,1.2951]
[1742565511442,0.08953411,1956.8,1956.4,2.43946]
[1742565511739,1.02262,1956.5,1956.4,1.3856]
[1742565512245,1.02269,1956.4,1956.2,4.23053]
[1742565512550,3.745,1956.4,1956.3,2.40832]
[1742565512940,4.76767,1956.4,1956.3,2.40832]
[1742565513437,4.76767,1956.4,1956.3,1.3856]
[1742565513747,4.76767,1956.4,1956.3,4.5934]
[1742565513945,4.76767,1956.4,1956.3,5.61612]
[1742565514646,6.17397,1956.4,1956.3,4.5934]
[1742565514840,1.02277,1956.2,1956.1,1.32387813]
[1742565515049,1.02277,1956.2,1956.1,3.72110813]
[1742565515435,1.02277,1956.2,1956.1,2.69827813]
[1742565515851,2.42905,1956.3,1956.1,2.69827813]
[1742565516042,2.42905,1956.3,1956.2,1.3744]
[1742565517945,1.02277,1956.2,1956.1,0.00767813]
[1742565518146,2.41247,1956.2,1956.1,0.00767813]
[1742565518532,1.3897,1956.2,1956.1,1.30797813]
[1742565518743,1.3897,1956.2,1956.1,2.33080813]
[1742565519647,2.41247,1956.2,1956.1,2.33080813]
[1742565519948,2.41247,1956.2,1956.1,1.30797813]
[1742565520641,1.02298,1955.8,1955.7,0.6768]
[1742565520945,1.02304,1955.7,1955.6,43.23617]
[1742565521145,2.33154,1955.7,1955.6,42.2131]
[1742565521345,1.3085,1955.7,1955.6,43.23619]
[1742565521741,3.745,1955.8,1955.7,1.02304]
[1742565522046,3.75267813,1955.8,1955.7,2.43614]
[1742565524948,0.6739,1956.3,1955.7,2.43614]
[1742565524949,3.745,1956.0,1955.7,2.43614]
[1742565525143,3.745,1956.0,1955.9,3.2078]
[1742565525344,3.745,1956.0,1955.8,1.4309]
[1742565525542,1.02293,1955.9,1955.8,4.6387]
[1742565525743,1.02293,1955.9,1955.6,41.82306]
[1742565525744,1.02304,1955.7,1955.6,41.82306]
[1742565525947,4.76804,1955.7,1955.6,43.21739]
[1742565526148,4.76804,1955.7,1955.6,42.1943]
[1742565526849,1.02309,1955.6,1955.5,3.21547813]
[1742565527045,4.94229,1955.6,1955.5,0.00767813]
[1742565527548,1.73449,1955.6,1955.5,0.00767813]
[1742565527747,1.8240833,1955.6,1955.5,0.00767813]
[1742565527952,1.02324,1955.3,1955.2,40.8]
[1742565528150,1.02335,1955.2,1955.1,1.02334]
[1742565528451,3.744,1955.3,1955.2,1.0233]
[1742565528655,3.744,1955.3,1955.2,2.3196]
[1742565529043,4.76724,1955.3,1955.2,2.3196]
[1742565529243,3.744,1955.3,1955.2,2.3196]
[1742565529441,3.744,1955.3,1955.2,3.6548]
[1742565530944,4.76724,1955.3,1955.2,3.6548]
[1742565531140,1.0233,1955.2,1955.1,41.83098813]
[1742565531344,1.0233,1955.2,1955.1,40.80767813]
[1742565532055,1.0233,1955.2,1955.1,42.19167813]
[1742565532249,1.0233,1955.2,1955.1,0.00767813]
[1742565534761,4.7683,1955.2,1955.1,0.00767813]
[1742565535458,4.7683,1955.2,1955.1,0.00224253]
[1742565535860,4.7683,1955.2,1955.1,1.39864253]
[1742565537759,4.7683,1955.2,1955.1,0.00224253]
[1742565537964,4.85790628,1955.2,1955.1,0.00224253]
[1742565538362,4.7683,1955.2,1955.1,0.00224253]
[1742565538656,4.7683,1955.2,1955.1,1.38864253]
[1742565538858,4.7683,1955.2,1955.1,0.00224253]
[1742565539050,8.06570649,1955.2,1955.1,0.00224253]
[1742565539863,4.85790649,1955.2,1955.1,0.00224253]
[1742565540058,4.7683,1955.2,1955.1,0.00224253]
[1742565540455,8.06570888,1955.2,1955.1,0.00224253]
[1742565540659,1.02351,1954.8,1954.7,4.4988]
[1742565540857,4.76851,1954.8,1954.7,1.291]
[1742565541865,3.745,1954.8,1954.7,2.31456]
[1742565542663,3.745,1954.8,1954.7,1.291]
[1742565542862,4.76851,1954.8,1954.7,1.291]
[1742565543069,3.745,1954.8,1954.7,2.31456]
[1742565543369,4.76851,1954.8,1954.7,2.31456]
[1742565543564,3.745,1954.8,1954.7,2.31456]
[1742565543863,4.76851,1954.8,1954.7,2.31456]
[1742565544063,4.76851,1954.8,1954.7,1.291]
[1742565544269,4.76851,1954.8,1954.7,2.31456]
[1742565544962,3.745,1954.8,1954.7,2.31456]
[1742565547268,4.76851,1954.8,1954.7,2.31456]
[1742565548670,3.745,1954.8,1954.7,2.31456]
[1742565549066,4.76851,1954.8,1954.7,2.31456]
[1742565549368,6.14751,1954.8,1954.7,1.291]
[1742565549669,6.14751,1954.8,1954.7,2.31456]
[1742565550173,5.124,1954.8,1954.7,2.31456]
[1742565550765,5.124,1954.8,1954.7,5.52236]
[1742565551079,5.124,1954.8,1954.7,2.31456]
[1742565551368,3.745,1954.8,1954.7,5.52236]
[1742565551571,1.324,1955.0,1954.9,1.02345]
[1742565551870,4.7674,1955.0,1954.9,1.02341]
[1742565552069,6.0914,1955.0,1954.9,1.02341]
[1742565552369,6.0914,1955.0,1954.9,1.411]
[1742565553267,5.068,1955.0,1954.6,40.80767813]
[1742565553470,2.42629,1954.9,1954.8,1.02349]
[1742565553670,1.02349,1954.9,1954.8,2.36709]
[1742565554169,2.42625,1954.9,1954.8,2.36709]
[1742565554565,2.42625,1954.9,1954.8,1.3436]
[1742565555670,1.4028,1954.9,1954.8,2.36711]
[1742565555872,2.42625,1954.9,1954.8,2.36711]
[1742565556067,1.4028,1954.9,1954.8,2.36711]
[1742565556372,3.744,1954.9,1954.8,2.36711]
[1742565556765,4.76745,1954.9,1954.8,2.36711]
[1742565556960,3.744,1954.9,1954.8,2.36711]
[1742565558972,1.02334,1955.2,1954.8,1.3436]
[1742565559172,2.34224,1955.2,1955.1,1.02335]
[1742565559480,6.08524,1955.2,1955.1,1.02335]
[1742565559865,1.0234,1955.0,1954.9,1.02342]
[1742565560071,1.02345,1954.9,1954.8,1.2955]
[1742565560267,6.08535,1954.9,1954.8,2.31901]
[1742565560962,1.02356,1954.7,1954.6,0.00767813]
[1742565561678,2.34246,1954.7,1954.6,0.00767813]
[1742565562064,2.43209374,1954.7,1954.6,0.00767813]
[1742565562269,1.02377,1954.3,1954.2,1.4015]
[1742565562469,4.76677,1954.3,1954.2,1.4015]
[1742565563073,1.02387,1954.1,1954.0,4.2317]
[1742565563379,1.02387,1954.1,1954.0,3.2078]
[1742565563574,1.02387,1954.1,1954.0,44.0078]
[1742565563780,1.02387,1954.1,1954.0,46.43323]
[1742565564078,1.02387,1954.1,1954.0,5.63323]
[1742565564781,1.02387,1954.1,1954.0,4.6093]
[1742565564977,1.02393,1954.0,1953.9,0.00767813]
[1742565565177,6.84493,1954.0,1953.9,0.00767813]
[1742565565678,7.53883,1954.0,1953.9,0.00767813]
[1742565566177,7.62848982,1954.0,1953.9,0.00767813]
[1742565566379,7.53883,1954.0,1953.9,0.00767813]
[1742565568375,7.62849018,1954.0,1953.9,0.00767813]
[1742565568680,7.62848774,1954.0,1953.9,0.00767813]
[1742565568883,7.53883,1954.0,1953.9,0.00767813]
[1742565570880,7.53883,1954.0,1953.9,1.38577813]
[1742565571084,7.53883,1954.0,1953.9,0.00767813]
[1742565571286,7.62848935,1954.0,1953.9,0.00767813]
[1742565571781,7.53883,1954.0,1953.9,0.00767813]
[1742565572187,7.53883,1954.0,1953.9,1.36207813]
[1742565572883,1.3969,1954.0,1953.9,0.00767813]
[1742565573083,0.00767813,1954.2,1953.9,0.67267813]
[1742565573283,1.37517813,1954.2,1954.1,1.02387]
[1742565573489,6.14199813,1954.2,1954.1,2.37827]
[1742565573889,4.77449813,1954.2,1954.1,2.37827]
[1742565574490,3.75067813,1954.2,1954.1,2.37827]
[1742565574689,0.00767813,1954.2,1954.1,2.37827]
[1742565574887,3.75067813,1954.2,1954.1,2.37827]
[1742565575688,0.00767813,1954.2,1954.1,2.37827]
[1742565576584,1.03149813,1954.2,1954.1,2.37827]
[1742565576786,2.45929813,1954.2,1954.1,2.37827]
[1742565577592,1.03149813,1954.2,1954.1,2.37827]
[1742565577984,1.03149813,1954.2,1954.1,5.58607]
[1742565578184,0.00767813,1954.2,1954.1,5.58607]
[1742565579383,1.03149813,1954.2,1954.1,5.58607]
[1742565579787,0.00767813,1954.2,1954.1,5.58607]
[1742565580182,1.03149813,1954.2,1954.1,5.58607]
[1742565580383,0.00767813,1954.2,1954.1,5.58607]
[1742565581782,1.03149813,1954.2,1954.1,5.58607]
[1742565582793,4.77349813,1954.2,1954.1,5.58607]
[1742565583292,4.77349813,1954.2,1954.1,2.37827]
[1742565584391,3.74967813,1954.2,1954.1,2.37827]
[1742565585899,4.77349813,1954.2,1954.1,2.37827]
[1742565586707,3.74967813,1954.2,1954.1,2.37827]
[1742565587198,4.77349813,1954.2,1954.1,2.37827]
[1742565587604,4.77349813,1954.2,1954.1,1.3544]
[1742565587898,1.02393,1954.0,1953.9,2.38231813]
[1742565588601,1.02393,1954.0,1953.9,2.38235813]
[1742565589598,4.23173,1954.0,1953.9,1.38927813]
[1742565589803,4.32138988,1954.0,1953.9,0.00767813]
[1742565591003,1.11358863,1954.0,1953.9,0.00767813]
[1742565591398,1.11358757,1954.0,1953.9,0.00767813]
[1742565591702,1.02393,1954.0,1953.9,0.00767813]
[1742565591904,1.11358964,1954.0,1953.9,0.00767813]
[1742565592106,1.02393,1954.0,1953.9,0.00767813]
[1742565592703,1.11358986,1954.0,1953.9,0.00767813]
[1742565592901,1.02393,1954.0,1953.9,0.00767813]
[1742565593102,1.02393,1954.0,1953.9,1.02622144]
[1742565593300,2.39272,1954.1,1954.0,1.02393]
[1742565593602,2.39272,1954.1,1954.0,2.40043]
[1742565593797,2.39272,1954.1,1954.0,3.76373]
[1742565594005,1.02392,1954.1,1954.0,3.76373]
[1742565594202,2.36392,1954.1,1954.0,3.76373]
[1742565594605,1.02392,1954.1,1954.0,3.76373]
[1742565594810,1.02392,1954.1,1954.0,2.7398]
[1742565595005,2.36392,1954.1,1954.0,1.3633]
[1742565596708,2.45357344,1954.1,1954.0,1.3633]
[1742565596904,1.02393,1954.0,1953.9,0.00224144]
[1742565597107,2.40173,1954.0,1953.9,0.00224144]
[1742565598107,2.49139278,1954.0,1953.9,0.00224144]
[1742565598910,7.17526278,1954.0,1953.3,1.02427]
[1742565599101,7.17526278,1954.0,1953.2,0.6844]
[1742565599102,1.02427,1953.4,1953.2,0.6844]
[1742565599306,4.76427,1953.4,1953.3,41.82424]
[1742565599914,4.76427,1953.4,1953.3,40.8]
[1742565600215,0.6642,1953.7,1953.4,1.02424]
[1742565600410,14.9786,1953.9,1953.7,1.02406]
[1742565600714,6.15458,1953.9,1953.8,1.3639]
[1742565601008,4.76398,1953.9,1953.8,1.3639]
[1742565601213,3.74,1953.9,1953.8,5.59573]
[1742565601413,1.02398,1953.9,1953.8,2.38789]
[1742565601612,6.32967504,1953.9,1953.0,5.76892]
[1742565601807,1.02419,1953.5,1953.4,0.35666238]
[1742565602007,4.76419,1953.5,1953.4,0.35666238]
[1742565602407,1.02429,1953.3,1953.2,40.80767813]
[1742565602612,3.29750725,1953.3,1952.5,3.2078]
[1742565602812,2.56119,1953.0,1952.5,4.91609]
[1742565603011,6.4656,1952.9,1952.5,6.45318]
[1742565603205,6.4656,1952.9,1952.8,1.02455]
[1742565603206,1.3703,1952.9,1952.8,1.02455]
[1742565603414,3.739,1952.9,1952.8,1.02455]
[1742565603609,4.7635,1952.9,1952.8,0.6787]
[1742565604116,3.739,1952.9,1952.8,4.91105]
[1742565604512,4.7635,1952.9,1952.8,0.6787]
[1742565604711,1.02455,1952.8,1952.7,4.24008813]
[1742565604916,1.3901,1952.8,1952.7,4.24008813]
[1742565605113,3.739,1952.9,1952.8,1.02455]
[1742565605413,3.739,1952.9,1952.8,2.44675]
[1742565605819,4.7635,1952.9,1952.8,1.4222]
[1742565606017,6.1536,1952.9,1952.8,1.4222]
[1742565606518,1.02455,1952.8,1952.7,3.21547813]
[1742565606728,2.41465,1952.8,1952.7,4.63767813]
[1742565607224,2.50436872,1952.8,1952.7,0.00767813]
[1742565607412,3.19296872,1952.8,1952.7,0.00767813]
[1742565607614,3.10325,1952.8,1952.7,0.00767813]
[1742565608725,3.19296985,1952.8,1952.7,0.00767813]
[1742565609523,1.02482,1952.3,1952.2,0.6918]
[1742565609709,1.02487,1952.2,1952.1,3.2078]
[1742565609912,1.02487,1952.2,1952.1,1.395]
[1742565609913,2.39317,1952.2,1952.1,1.395]
[1742565610108,1.02492,1952.1,1952.0,0.6519]
[1742565610308,1.3683,1952.2,1952.0,0.6519]
[1742565610517,1.02492,1952.1,1952.0,0.6519]
[1742565610723,1.02492,1952.1,1952.0,1.963]
[1742565611021,1.3683,1952.2,1952.0,1.963]
[1742565611221,3.74,1952.3,1952.2,1.02487]
[1742565611516,3.74,1952.5,1952.4,1.02476]
[1742565611820,5.1652,1952.7,1952.6,1.02466]
[1742565612014,1.02461,1952.7,1952.6,4.23243]
[1742565612217,6.18981,1952.7,1952.6,3.2078]
[1742565612420,1.02466,1952.6,1952.5,2.33576]
[1742565612619,1.4252,1952.6,1952.5,1.02466]
[1742565612820,2.44986,1952.6,1952.5,1.02466]
[1742565613024,4.76463,1952.7,1952.4,44.0078]
[1742565613215,3.74,1952.7,1952.6,4.23246]
[1742565613519,6.18974,1952.9,1952.8,1.02455]
[1742565613826,0.00767813,1953.0,1952.9,1.0245]
[1742565614024,3.74767813,1953.0,1952.9,1.0245]
[1742565614611,3.74767813,1953.0,1952.8,4.23234]
[1742565614917,1.3529,1952.9,1952.8,4.23234]
[1742565615118,2.3774,1952.9,1952.8,3.2078]
[1742565615322,2.3774,1952.9,1952.7,1.72258]
[1742565615323,1.3529,1952.9,1952.7,1.72258]
[1742565615623,1.3529,1952.8,1952.7,4.93038]
[1742565615825,4.77216813,1953.0,1952.7,3.9058]
[1742565616120,6.12506813,1953.0,1952.9,4.2323]
[1742565616319,3.74767813,1953.0,1952.9,4.2323]
[1742565616530,3.739,1953.7,1953.6,1.02411]
[1742565616824,4.76312,1953.7,1953.5,4.23196]
[1742565617019,1.3175,1953.6,1953.5,4.23196]
[1742565617327,4.76308,1953.7,1953.6,1.02414]
[1742565617520,3.739,1953.7,1953.6,1.02414]
[1742565618416,2.34923813,1953.8,1953.5,3.21547813]
[1742565618417,1.32517813,1953.8,1953.5,3.21547813]
[1742565618618,3.74667813,1953.8,1953.7,4.23188]
[1742565618820,0.00767813,1953.8,1953.7,4.23188]
[1742565619018,0.00767813,1953.8,1953.7,45.03188]
[1742565619320,0.00767813,1953.8,1953.5,2.56811813]
[1742565619321,0.00767813,1953.8,1953.5,0.00767813]
[1742565619511,4.76312,1953.7,1953.5,1.03182813]
[1742565619718,1.3175,1953.6,1953.5,4.23962813]
[1742565619929,3.739,1953.7,1953.6,1.02414]
[1742565620424,0.00767813,1953.8,1953.7,1.02408]
[1742565620616,0.00767813,1953.8,1953.7,4.94048]
[1742565622524,1.3443,1954.1,1954.0,1.02393]
[1742565622728,3.738,1954.2,1954.1,1.02387]
[1742565623319,3.738,1954.3,1954.2,1.02382]
[1742565623520,3.738,1954.4,1954.3,1.02375]
[1742565623825,1.02377,1954.3,1954.2,3.2078]
[1742565624023,1.4001,1954.3,1954.1,1.02384]
[1742565624226,1.4001,1954.3,1954.0,4.6269]
[1742565624524,1.02396,1954.0,1953.7,3.9164]
[1742565624724,1.02408,1953.7,1953.6,1.02412]
[1742565624921,3.738,1953.7,1953.5,5.28467813]
[1742565625120,1.4001,1953.6,1953.5,6.30886813]
[1742565625314,3.738,1953.7,1953.6,1.02414]
[1742565625617,5.1381,1953.7,1953.6,1.02414]